Cogmind - Beta 14 @@@ ROGUE MODE // 2025.03.31 @ 19:09:58 Player: golanco Result: Destroyed by 8R-AWN with 8R-AWN's Boregun Performance ------------- Evolutions (0) 0 Regions Visited (3) 600 Robots Destroyed (27) 135 Value Destroyed (287) 287 Prototype IDs (0) 0 Alien Tech Used (0) 0 Bonus (-6) -6 TOTAL SCORE: 1016 Bonus ------- Friendly Fire -6 Cogmind --------- Core Integrity 0/250 Matter 45/300 Energy 10/250 System Corruption 0% Temperature Warm (151) Movement Core (1500) Ox29 Location -10/Exiles Parts ------- > --- POWER (1) -------- Ion Engine > --- PROPULSION (2) --- (None) > --- UTILITY (2) ------ Huge Storage Unit Shield Generator > --- WEAPON (2) ------- Medium Laser Light Assault Rifle > --- INVENTORY (25) --- Light Treads Light Treads Huge Storage Unit Structural Scanner Transport Network Coupler Hacking Suite Medium Laser Light Assault Rifle Plasma Cutter Plasma Cutter Peak State ------------ > --- POWER ------------ Light Ion Engine > --- PROPULSION ------- Light Treads Light Treads > --- UTILITY ---------- Huge Storage Unit Targeting Computer > --- WEAPON ----------- Medium Laser Light Assault Rifle > --- INVENTORY -------- Ion Engine Light Treads Light Treads Huge Storage Unit Structural Scanner Transport Network Coupler Shield Generator Hacking Suite Medium Laser Light Assault Rifle Light Assault Rifle Grenade Launcher Grenade Launcher Grenade Launcher Plasma Cutter Plasma Cutter [Rating: 9] Favorites ----------- Power Light Ion Engine Engine Light Ion Engine Propulsion Light Treads Treads Light Treads Utility Targeting Computer Device Shield Generator Storage Huge Storage Unit Processor Targeting Computer Weapon Medium Laser Energy Gun Medium Laser Energy Cannon Particle Cannon Ballistic Gun Light Assault Rifle Launcher Grenade Launcher Build | -11 -10 -10 -10 ------- Run | Yrd Mat Min Exi Slots Evolved . | . . . . Power . | . . . . Propulsion . | . . . . Utility . | . . . . Weapon . | . . . . Parts Attached 25 | 6 10 . 9 Power 4 | 1 2 . 1 Engine 4 | 1 2 . 1 Core . | . . . . Reactor . | . . . . Propulsion 5 | 2 3 . . Treads 5 | 2 3 . . Leg . | . . . . Wheel . | . . . . Hover . | . . . . Flight . | . . . . Utility 5 | 1 3 . 1 Device 1 | . . . 1 Storage 3 | 1 2 . . Processor 1 | . 1 . . Hackware . | . . . . Protection . | . . . . Artifact . | . . . . Weapon 11 | 2 2 . 7 Energy Gun 3 | 2 . . 1 Energy Cannon 1 | . . . 1 Ballistic Gun 3 | . 1 . 2 Ballistic Cannon . | . . . . Launcher 4 | . 1 . 3 Special Weapon . | . . . . Impact Weapon . | . . . . Slashing Weapon . | . . . . Piercing Weapon . | . . . . Special Melee Weapon . | . . . . Unidentified Prototypes . | . . . . Parts Lost 11 | . 3 . 8 Power 2 | . 1 . 1 Propulsion 2 | . . . 2 Utility . | . . . . Weapon 7 | . 2 . 5 Highest Loss Streak 8 | . 2 . 8 To Critical Strikes 3 | . 1 . 2 Average Slot Usage (%) 98 | . 98 100 87 Engine 13 | . 13 14 11 Treads 27 | . 28 28 21 Storage 14 | . 14 14 14 Processor 13 | . 13 14 11 Energy Gun 13 | . 15 14 . Ballistic Gun 9 | . 9 14 1 Launcher 3 | . 2 . 21 Peak Build Rating 9 | 6 9 9 9 Average Rating 8 | 4 7 9 8 On Entrance 6 | . 6 9 9 Naked Turns . | . . . . Heaviest Build 89 | 12 86 86 89 Greatest Support 40 | 40 40 40 40 Greatest Overweight (x) 2 | . 2 2 2 Average Overweight (x) 1 | . 1 2 2 Largest Inventory Capacity 25 | 8 25 25 25 Average Capacity 20 | 6 18 25 25 Most Carried 17 | 2 17 17 17 Average Carried 12 | 1 11 17 16 Final Capacity 25 | 8 25 25 25 Final Carried 17 | 2 17 17 10 Class Distribution -------------------- 100% | Mutant Dominant Class ---------------- Mutant | -10/Materials Mutant | -10/Mines Mutant | -10/Exiles Resources | -11 -10 -10 -10 ----------- Run | Yrd Mat Min Exi Matter Collected 381 | 260 118 3 . Remotely . | . . . . Salvage Created 680 | 37 574 39 30 Parts 54 | 3 47 4 . Haulers Intercepted 2 | . 2 . . Recyclers Shooed . | . . . . Parts Field Recycled . | . . . . Retrieved Matter . | . . . . Parts Self-Destructed . | . . . . Prevented . | . . . . Kills | -11 -10 -10 -10 ------- Run | Yrd Mat Min Exi Combat Hostiles Destroyed 21 | . 11 3 7 Guns 9 | . 6 3 . AOE 12 | . 5 . 7 Classes Destroyed 9 | 1 7 . 1 Worker 4 | 2 2 . . Builder 1 | . 1 . . Hauler 2 | . 2 . . Recycler 2 | . 2 . . Operator 1 | . 1 . . Watcher 3 | . 3 . . Swarmer 12 | . 9 3 . Grunt 2 | . 2 . . Assembled 7 | . . . 7 Best Kill Streak 11 | 2 11 3 7 Combat Bots Only 8 | . 8 3 7 Max Kills in Single Turn 6 | 2 6 1 6 Gunslinging . | . . . . Exploded 6 | . 5 . 6 Melee . | . . . . Uniques/NPCs Destroyed . | . . . . Combat | -11 -10 -10 -10 -------- Run | Yrd Mat Min Exi Hostile Shots Fired 141 | . 65 11 65 Missed 28 | . 9 4 15 Damage Taken 1465 | . 574 58 833 Core 254 | . 103 10 141 Absorbed by Shields 17 | . . . 17 Core Remaining (%) 100 | 100 . . . Volleys Fired 89 | 2 63 3 21 Largest 2 | 2 2 2 2 Hottest 98 | 90 90 70 98 Shots Fired 131 | 4 85 6 36 Gun 100 | 4 84 6 6 Cannon 10 | . . . 10 Launcher 21 | . 1 . 20 Special . | . . . . Kinetic 20 | . 12 3 5 Thermal 79 | 2 63 3 11 Explosive 21 | . 1 . 20 Electromagnetic 11 | 2 9 . . Robot Hit Streak 13 | 1 6 3 13 Robot Miss Streak 4 | 3 4 1 2 Penetration Max . | . . . . Secondary Targets 3 | . 1 2 . Max Gunslinging Chain 1 | . 1 1 . Shots Hit Robots 82 | 1 51 4 26 Core Hits 59 | 2 34 3 20 Critical Kills . | . . . . Critical Parts Destroyed . | . . . . Critical Strikes 5 | . 4 1 . Burn 5 | . 4 1 . Melee Attacks . | . . . . Impact . | . . . . Slashing . | . . . . Piercing . | . . . . Sneak Attacks . | . . . . Combat Hostiles . | . . . . Follow-up Attacks . | . . . . Damage Inflicted 1365 | 26 900 45 394 Guns 734 | 26 641 45 22 Cannons 16 | . . . 16 Explosions 612 | . 256 . 356 Melee . | . . . . Ramming 3 | . 3 . . Kinetic 105 | . 75 8 22 Thermal 581 | 13 515 37 16 Explosive 612 | . 256 . 356 Electromagnetic 64 | 13 51 . . Impact . | . . . . Slashing . | . . . . Piercing . | . . . . Highest Corruption . | . . . . Average Corruption . | . . . . Corruption Purged . | . . . . Corruption Blocked . | . . . . Overload Shots . | . . . . Overflow Damage . | . . . . Projectiles . | . . . . Explosions . | . . . . Melee . | . . . . Knockbacks . | . . . . Impact . | . . . . Kinetic . | . . . . Secondary . | . . . . Self-Inflicted Damage 29 | . 24 . 5 Shots 2 | . 1 . 1 Rammed 1 | . 1 . . Targets Rammed 1 | . 1 . . Kicked . | . . . . Crushed . | . . . . Highest Temperature 176 | 30 138 50 176 Average Temperature 52 | 14 50 26 77 Received Heat Transfer 56 | . 36 . 20 Siege Activations . | . . . . Robots Corrupted . | . . . . Combat Hostiles . | . . . . Parts Fried . | . . . . Impact Corruptions . | . . . . Robots Melted . | . . . . Combat Hostiles . | . . . . Parts Melted 1 | . 1 . . Heat Transferred 2107 | 37 1813 185 72 Parts Sabotaged . | . . . . Parts Stolen . | . . . . Parts Stripped . | . . . . Power Chain Reactions . | . . . . Alert | -11 -10 -10 -10 ------- Run | Yrd Mat Min Exi Peak Influence 290 | 10 290 70 . Initial 6 | . 6 . . Average 68 | . 93 8 . Maximum Alert Level 1 | . 1 . . Low Security (%) 91 | 100 87 100 . Level 1 8 | . 12 . . Level 2 . | . . . . Level 3 . | . . . . Level 4 . | . . . . Level 5 . | . . . . High Security . | . . . . Max Security . | . . . . Squads Dispatched 1 | . 1 . . Investigation . | . . . . Extermination . | . . . . Reinforcement 1 | . 1 . . Assault . | . . . . Garrison . | . . . . Intercept . | . . . . Searches Triggered . | . . . . Construction Impeded . | . . . . Haulers Reinforced . | . . . . Active Scanning Responses . | . . . . Cargo Convoy Interrupts . | . . . . Stealth | -11 -10 -10 -10 --------- Run | Yrd Mat Min Exi Distress Signals 1 | . 1 . . Communications Jammed . | . . . . Distress Signals . | . . . . Times Spotted 32 | . 21 3 8 Peak Tracking Total 9 | . 6 2 9 Tactical Retreats 2 | . 2 . . Traps | -11 -10 -10 -10 ------- Run | Yrd Mat Min Exi Traps Triggered 3 | . 3 . . Indirectly . | . . . . Trap Hack Attempts . | . . . . Triggered . | . . . . Disarmed . | . . . . Reprogrammed . | . . . . Reused . | . . . . Traps Extracted . | . . . . Installed . | . . . . Triggered . | . . . . Machines | -11 -10 -10 -10 ---------- Run | Yrd Mat Min Exi Machines Disabled 3 | . 1 . 2 Max in Single Turn 2 | . 1 . 2 Machines Repaired . | . . . . Machines Dismantled . | . . . . Machines Sabotaged . | . . . . Overloaded Fab Kills . | . . . . Hacking | -11 -10 -10 -10 --------- Run | Yrd Mat Min Exi Machines Accessed 3 | . 3 . . Terminals 3 | . 3 . . Fabricators . | . . . . Repair Stations . | . . . . Recycling Units . | . . . . Scanalyzers . | . . . . Garrison Access . | . . . . Total Hacks 8 | . 8 . . Successful 2 | . 2 . . Failed 6 | . 6 . . Catastrophic 1 | . 1 . . Database Lockouts . | . . . . Manual . | . . . . Terminals 8 | . 8 . . Fabricators . | . . . . Repair Stations . | . . . . Recycling Units . | . . . . Scanalyzers . | . . . . Garrison Access . | . . . . Terminal Hacks 2 | . 2 . . Robot Analysis 1 | . 1 . . Hauler Manifests 1 | . 1 . . Fabricator Hacks . | . . . . Repair Station Hacks . | . . . . Recycling Unit Hacks . | . . . . Scanalyzer . | . . . . Garrison Access Hacks . | . . . . Unauthorized Hacks . | . . . . Terminals . | . . . . Fabricators . | . . . . Repair Stations . | . . . . Recycling Units . | . . . . Scanalyzers . | . . . . Garrison Access . | . . . . Data Cores Recovered . | . . . . Used . | . . . . Hacking Detections 2 | . 2 . . Full Trace Events 1 | . 1 . . Feedback Events . | . . . . Feedback Blocked . | . . . . Robot Schematics Acquired . | . . . . Robots Built . | . . . . Authchips . | . . . . Time . | . . . . Total Robot Build Rating . | . . . . Part Schematics Acquired . | . . . . Parts Built . | . . . . Authchips . | . . . . Time . | . . . . Total Part Build Rating . | . . . . Parts Repaired . | . . . . Time . | . . . . Parts Recycled . | . . . . Recycled Matter . | . . . . Retrieved Matter . | . . . . Retrieved Components . | . . . . Parts Scanalyzed . | . . . . Part Schematics Acquired . | . . . . Parts Damaged . | . . . . Bothacking | -11 -10 -10 -10 ------------ Run | Yrd Mat Min Exi Used RIF Installer . | . . . . Robots Hacked . | . . . . Non-combat . | . . . . Combat . | . . . . Robot Hacks Applied . | . . . . Relay Couplers Released . | . . . . Fabnet Peak Effective % . | . . . . Robots Rewired . | . . . . Allies Hacked . | . . . . Hacks Repelled . | . . . . Allies | -11 -10 -10 -10 -------- Run | Yrd Mat Min Exi Total Allies . | . . . . Largest Group . | . . . . Highest-Rated Group . | . . . . Highest-Rated Ally . | . . . . Total Orders . | . . . . Ally Attacks . | . . . . Total Damage . | . . . . Kills . | . . . . Allies Corrupted . | . . . . Allies Melted . | . . . . Intel | -11 -10 -10 -10 ------- Run | Yrd Mat Min Exi Robot Analysis Total 1 | . 1 . . Derelict Logs Recovered 2 | . . 2 . Drone Launches . | . . . . Drone Recoveries . | . . . . Exploration | -11 -10 -10 -10 ------------- Run | Yrd Mat Min Exi Turns Passed 2471 | 114 1604 553 200 Spaces Moved 865 | 64 590 171 40 Core 4 | 4 . . . Treads 861 | 60 590 171 40 Legs . | . . . . Wheels . | . . . . Hover . | . . . . Flight . | . . . . Fastest Speed 50 | 50 160 320 320 Average Speed 253 | 153 240 320 320 Slowest Speed 320 | 160 320 320 320 Overloaded Moves . | . . . . Propulsion Burnouts . | . . . . Robots Hopped . | . . . . Cave-ins Triggered . | . . . . Exploration Rate (%) 34 | 4 67 54 11 Regions Visited 3 Branch Regions 2 Pre-discovered Areas 2 | . . 2 . Known Exits Taken . | . . . . Unknown Exits Taken 3 | 1 1 1 . Scrap Searched 1 | . . 1 . Spaces Dug . | . . . . Terrain Destroyed 71 | . 7 . 64 Melee . | . . . . Projectile 2 | . . . 2 AOE 69 | . 7 . 62 Terrain Rammed . | . . . . Walls Destroyed . | . . . . Machines Disabled . | . . . . Actions | -11 -10 -10 -10 --------- Run | Yrd Mat Min Exi Total 1017 | 73 694 173 77 Wait 8 | . 1 . 7 Move 862 | 63 589 170 40 Hop . | . . . . Pick Up 24 | 2 22 . . Fast Attach 7 | 6 1 . . Attach 9 | . 3 . 6 Detach . | . . . . Swap 9 | . 6 . 3 Drop 8 | . 8 . . Fire 89 | 2 63 3 21 Melee . | . . . . Ram . | . . . . Kick . | . . . . Crush 1 | . 1 . . Escape Stasis . | . . . . Rewire . | . . . . Trap . | . . . . Miscellaneous . | . . . . Route ------- -11/Scrapyard -10/Materials (discovered 2 exits: [*Min x2]) -10/Mines (discovered 2 exits: [*Mat] / [*Exi]) -10/Exiles History --------- Turn | Location | Event 7 | -11/Scrapyard | Discovered new exit (range 14) 115 | -11/Scrapyard | Entered Materials 308 | -10/Materials | Build established: Mutant 343 | -10/Materials | Destroyed 8 combat bots 669 | -10/Materials | Discovered new exit (range 16) 700 | -10/Materials | Discovered new exit (range 16) 1719 | -10/Materials | Entered Mines 1806 | -10/Mines | Discovered new exit (range 9) 2145 | -10/Mines | Found a damaged Exp. Sensor Array with a note attached 2256 | -10/Mines | Deemed a non-threat by the Exiles lab entrance 2259 | -10/Mines | Discovered new exit (range 5) 2272 | -10/Mines | Entered Exiles 2352 | -10/Exiles | Met 8R-AWN 2404 | -10/Exiles | Attacked by the Exiles 2405 | -10/Exiles | Core integrity fell below 50% 2441 | -10/Exiles | Core integrity fell below 20% 2445 | -10/Exiles | Destroyed 7 combat bots 2472 | -10/Exiles | Destroyed by 8R-AWN with 8R-AWN's Boregun Last Messages --------------- The unstable cave ceiling collapses. Penetrated by HV Slug. HV Slug penetrates Earth. Penetrated by HV Slug. HV Slug penetrates Earth. The unstable cave ceiling collapses. HV Slug penetrates Earth. HV Slug penetrates Wall. HV Slug penetrates Earth. The unstable cave ceiling collapses. Penetrated by HV Slug. HV Slug penetrates Wall. Penetrated by HV Slug. Lgt. Assault Rifle destroyed. Penetrated by HV Slug. The unstable cave ceiling collapses. Penetrated by HV Slug. Particle Cannon destroyed. HV Slug penetrates Wall. Penetrated by HV Slug. Map ----- +----------------------------------------------------+ | ?????????????????????????????????????????????????? | | ?????????????????????????????????????????????????? | | ?????????????????????????????????????????????????? | | ?????????????????????????????????????????????????? | | ?????????????????????????????????????????????????? | | ?????????????????????????????????????????????????? | | ?????????????????????????????????????????????????? | | ?????????????????????????????????????????????????? | | ?????????????????????????????????????????????????? | | ?????????????????????????????????????????????????? | | ?????????????????????????????????????????????????? | | ???????????????????????????????????????? ???????? | | ??????????????????###??????????????????? ?????? | | ?????????????????# ##????????????????# #?????? | | ??????????????#### ??????????????## ##????? | | ??????????????# # #??????????????# #????? | | ??????????????# ?????????????# #????? | | ??????????????# # # ????????????## ?????? | | ????????????### ???????????## #??????? | | ????????????# g # #??????????# #??????? | | ????????????# ????????### #???????? | | ????????????# ######### #???????? | | ????????????# """"## #????????? | | ????????????# * ##???????? | | ???????? % * #???????? | | ??????? #?# @ ##??????? | | ???????? ""??#"" ;;;; ###????? | | ??????? #"""#??#####;# ;### * ###??? | | ???????? #####???????##? ###### ##?? | | ???????? #??????????????? # #???### #?? | | ??????????????????????????### #?????### #?? | | ?????????????????????????????# #??????### #?? | | ?????????????????????????????? #???????#" ##? | | ??????????????????????????????? ???????#### ## | | ???????????????????????????????? ?????????# | | ????????????????????????????????? #????????## | | ?????????????????????????????????##?????????### | | ??????????????????????????????????????????????# | | ??????????????????????????????????????????????## | | ???????????????????????????????????????????????### | | ?????????????????????????????????????????????????? | | ?????????????????????????????????????????????????? | | ?????????????????????????????????????????????????? | | ?????????????????????????????????????????????????? | | ?????????????????????????????????????????????????? | | ?????????????????????????????????????????????????? | | ?????????????????????????????????????????????????? | | ?????????????????????????????????????????????????? | | ?????????????????????????????????????????????????? | | ?????????????????????????????????????????????????? | +----------------------------------------------------+ Best States ------------- Heat Dissipation 25 Energy Generation 10 Energy Capacity 250 Matter Stores 300 Matter Capacity 300 Sight Range 16 Terrain Scan Density 10 Evasion (%) 40 Targeting Accuracy 5 Recoil Reduction 2 Item Schematics ----------------- None Robot Schematics ------------------ None Fabricated ------------ Nothing Alien Tech Used ----------------- None Achievements -------------- None Challenges ------------ None Game ------ Seed WeldingAnalysisClaws Manual? 0 Play Time 00:13:27 Cumulative 33.3 hours Start 2025.03.31 @ 18:57:53 End 2025.03.31 @ 19:09:58 Sessions 1 Manual Loads 0 Difficulty Rogue Special Mode None Game No. 92 Rogue 92 Adventurer 0 Explorer 0 Win Type - Total 0 Types 0/0/0/0/0/0/0/0/0 Lore% 16 Gallery% 24 Achievement% 25 Wizard Run 0 Options --------- Layout 1 ASCII 0 Keyboard 0 Movement Mouse Keybinds 0 Fullscreen 1 Font 36/Smallcaps Map View 50x40 Zoom Use 0% Tactical HUD 0 Map Filters NONE Filters NONE Steam 1 RUN: de688068-45ab-4a87-981b-687201fdec82